{"text_format":"1","workbook":"xlsx","n_sheets":2,"sheets":["LG","LP"],"not_rendered":{"charts":0,"images":1,"macros":0,"external_links":0,"defined_names":1,"comments":2,"pivot_tables":0},"unopened":[],"bounds":{"document_bytes":16777216,"sheet_cells":100000,"rows_first":2000,"rows_last":500,"rows_between":2000,"halvings":0,"cell_chars":16384,"cell_head_chars":4096},"cells_cut":0,"cells_raw":0,"read":"whole","date_system":"1900"}

{"sheet":"LG","index":0,"n_rows":38,"n_cols":21,"rows_kept":38,"cut":false,"hidden":false,"merged":[[9,16,9,20],[7,11,7,20],[2,16,2,19],[3,16,3,19],[1,3,1,15],[2,3,2,15],[4,14,4,16],[8,11,8,20],[8,1,8,9],[4,12,4,13],[4,1,4,2],[4,4,4,9],[7,1,7,9],[9,5,9,9],[0,16,1,19],[10,14,10,15],[11,14,11,15],[11,3,11,4],[10,3,10,4],[15,3,15,4],[12,3,12,4],[13,3,13,4],[18,3,18,4],[14,3,14,4],[12,14,12,15],[13,14,13,15],[14,14,14,15],[15,14,15,15],[18,14,18,15],[17,3,17,4],[17,14,17,15],[16,3,16,4],[16,14,16,15],[20,0,20,20],[21,13,21,20],[21,0,21,7],[21,8,21,9],[21,11,21,12],[27,8,27,12],[28,8,28,12],[29,8,29,12],[23,0,23,20],[26,8,26,12],[25,0,25,20]]}
[null,null,null,null,null,null,null,null,null,null,null,null,null,null,null,null,"Gruppenphase\n(Gruppe):"]
[null,null,null,"DSB-Pokal 2017"]
[null,null,null,null,null,null,null,null,null,null,null,null,null,null,null,null,"K.O.-Runde"]
[]
[null,null,null,"Disziplin :","Luftgewehr",null,null,null,null,null,null,null,"Datum :"]
[]
[]
[]
[null,"Gastgeber / Ausrichter",null,null,null,null,null,null,null,null,null,"Gast"]
[null,null,null,null,null,"Wettkampfergebnis",null,null,null,null,null,null,null,null,null,null,"Wettkampfergebnis"]
["Lfd. Nr.","Scheib Nr.","Klasse","Vor- u. Nachname",null,1,2,3,4,"Ringe",null,"Lfd. Nr.","Scheib Nr.","Klasse","Vor- u. Nachname",null,{"$f":"F11","v":1},{"$f":"G11","v":2},{"$f":"H11","v":3},{"$f":"I11","v":4},"Ringe"]
[1,null,null,null,null,null,null,null,null,{"$f":"IF(I12=\"\",\"\",SUM(F12:I12))","v":""},null,1,null,null,null,null,null,null,null,null,{"$f":"IF(T12=\"\",\"\",SUM(Q12:T12))","v":""}]
[2,null,null,null,null,null,null,null,null,"",null,2,null,null,null,null,null,null,null,null,""]
[3,null,null,null,null,null,null,null,null,"",null,3,null,null,null,null,null,null,null,null,""]
[4,null,null,null,null,null,null,null,null,"",null,4,null,null,null,null,null,null,null,null,""]
[5,null,null,null,null,null,null,null,null,"",null,5,null,null,null,null,null,null,null,null,""]
[6,null,null,null,null,null,null,null,null,"",null,6,null,null,null,null,null,null,null,null,""]
[7,null,null,null,null,null,null,null,null,"",null,7,null,null,null,null,null,null,null,null,""]
[8,null,null,null,null,null,null,null,null,"",null,8,null,null,null,null,null,null,null,null,""]
[]
["Auswertung"]
["Ringsumme Heimmannschaft",null,null,null,null,null,null,null,{"$f":"IF(SUM(J12:J19)<>0,SUM(J12:J19),\"\")","v":""},null,":",{"$f":"IF(SUM(U12:U19)<>0,SUM(U12:U19),\"\")","v":""},null,"Ringsumme Gastmannschaft"]
[]
["Der Wettkampf wurde unter Berücksichtigung der gültigen Ausschreibung des DSB-Pokals und der Sportordnung des Dt. Schützenbundes durchgeführt.\nDieses Formular ist auszudrucken und von den Mannschaftsführern zu unterschreiben. Das Original ist zusammen mit den beschossenen Scheiben bzw. den Kontrollausdrucken bis zum Abschluss der Pokalrunde aufzubewahren. Die Übermittlung an den DSB erfolgt durch den Heimverein innerhalb der ausgeschriebenen Frist per Email an bachem@dsb.de (Scan des unterschriebenen Originals), die Gastmannschaft ist dabei in CC zu setzen. Wird der Wettkampf als Fernwettkampf ausgetragen, senden beide Mannschaften einen unterschriebenen Bogen per Email an den DSB und den Gegner)."]
[]
["Bestätigung der Mannschaftsführer"]
[null,null,null,null,null,null,null,null,"Name"]
[null,null,null,null,null,null,null,null,"Anschrift"]
[null,null,null,null,null,null,null,null,"Telefon, Email"]
[null,null,null,null,null,null,null,null,"Unterschrift"]
[]
[]
[null,null,null,null,null,{"$f":"IF(J12=\"\",0,RANK(J12,$J$12:$J$16))","v":0},{"$f":"IF(I12=\"\",0,RANK(I12,$I$12:$I$16))","v":0},null,{"$f":"RANK(#REF!,#REF!,1)","v":{"$error":"#REF!"}},null,null,null,null,null,null,null,{"$f":"IF(U12=\"\",0,RANK(U12,$U$12:$U$16))","v":0},{"$f":"IF(T12=\"\",0,RANK(T12,$T$12:$T$16))","v":0},null,{"$f":"RANK(#REF!,#REF!,1)","v":{"$error":"#REF!"}}]
[null,null,null,null,null,{"$f":"IF(J13=\"\",0,RANK(J13,$J$12:$J$16))","v":0},{"$f":"IF(I13=\"\",0,RANK(I13,$I$12:$I$16))","v":0},null,{"$f":"RANK(#REF!,#REF!,1)","v":{"$error":"#REF!"}},null,null,null,null,null,null,null,{"$f":"IF(U13=\"\",0,RANK(U13,$U$12:$U$16))","v":0},{"$f":"IF(T13=\"\",0,RANK(T13,$T$12:$T$16))","v":0},null,{"$f":"RANK(#REF!,#REF!,1)","v":{"$error":"#REF!"}}]
[null,null,null,null,null,{"$f":"IF(J14=\"\",0,RANK(J14,$J$12:$J$16))","v":0},{"$f":"IF(I14=\"\",0,RANK(I14,$I$12:$I$16))","v":0},null,{"$f":"RANK(#REF!,#REF!,1)","v":{"$error":"#REF!"}},null,null,null,null,null,null,null,{"$f":"IF(U14=\"\",0,RANK(U14,$U$12:$U$16))","v":0},{"$f":"IF(T14=\"\",0,RANK(T14,$T$12:$T$16))","v":0},null,{"$f":"RANK(#REF!,#REF!,1)","v":{"$error":"#REF!"}}]
[null,null,null,null,null,{"$f":"IF(J15=\"\",0,RANK(J15,$J$12:$J$16))","v":0},{"$f":"IF(I15=\"\",0,RANK(I15,$I$12:$I$16))","v":0},null,{"$f":"RANK(#REF!,#REF!,1)","v":{"$error":"#REF!"}},null,null,null,null,null,null,null,{"$f":"IF(U15=\"\",0,RANK(U15,$U$12:$U$16))","v":0},{"$f":"IF(T15=\"\",0,RANK(T15,$T$12:$T$16))","v":0},null,{"$f":"RANK(#REF!,#REF!,1)","v":{"$error":"#REF!"}}]
[null,null,null,null,null,{"$f":"IF(J16=\"\",0,RANK(J16,$J$12:$J$16))","v":0},{"$f":"IF(I16=\"\",0,RANK(I16,$I$12:$I$16))","v":0},null,{"$f":"RANK(#REF!,#REF!,1)","v":{"$error":"#REF!"}},null,null,null,null,null,null,null,{"$f":"IF(U16=\"\",0,RANK(U16,$U$12:$U$16))","v":0},{"$f":"IF(T16=\"\",0,RANK(T16,$T$12:$T$16))","v":0},null,{"$f":"RANK(#REF!,#REF!,1)","v":{"$error":"#REF!"}}]
[null,null,null,null,null,{"$f":"IF(J19=\"\",0,RANK(J19,$J$12:$J$19))","v":0},{"$f":"IF(I19=\"\",0,RANK(I19,$I$12:$I$19))","v":0},null,{"$f":"RANK(#REF!,#REF!,1)","v":{"$error":"#REF!"}},null,null,null,null,null,null,null,{"$f":"IF(U19=\"\",0,RANK(U19,$U$12:$U$19))","v":0},{"$f":"IF(T19=\"\",0,RANK(T19,$T$12:$T$19))","v":0},null,{"$f":"RANK(#REF!,#REF!,1)","v":{"$error":"#REF!"}}]

{"sheet":"LP","index":1,"n_rows":36,"n_cols":21,"rows_kept":36,"cut":false,"hidden":false,"merged":[[24,8,24,12],[25,8,25,12],[26,8,26,12],[27,8,27,12],[15,3,15,4],[15,14,15,15],[21,0,21,20],[23,0,23,20],[16,3,16,4],[16,14,16,15],[18,0,18,20],[19,0,19,7],[19,8,19,9],[19,11,19,12],[19,13,19,20],[13,3,13,4],[13,14,13,15],[14,3,14,4],[14,14,14,15],[10,3,10,4],[10,14,10,15],[11,3,11,4],[11,14,11,15],[12,3,12,4],[12,14,12,15],[7,1,7,9],[7,11,7,20],[8,1,8,9],[8,11,8,20],[9,5,9,9],[9,16,9,20],[4,1,4,2],[4,4,4,9],[4,12,4,13],[4,14,4,16],[0,16,1,19],[1,3,1,15],[2,3,2,15],[2,16,2,19],[3,16,3,19]]}
[null,null,null,null,null,null,null,null,null,null,null,null,null,null,null,null,"Gruppenphase\n(Gruppe):"]
[null,null,null,"DSB-Pokal 2017"]
[null,null,null,null,null,null,null,null,null,null,null,null,null,null,null,null,"K.O.-Runde"]
[]
[null,null,null,"Disziplin :","Luftpistole",null,null,null,null,null,null,null,"Datum :"]
[]
[]
[]
[null,"Gastgeber / Ausrichter",null,null,null,null,null,null,null,null,null,"Gast"]
[null,null,null,null,null,"Wettkampfergebnis",null,null,null,null,null,null,null,null,null,null,"Wettkampfergebnis"]
["Lfd. Nr.","Scheib Nr.","Klasse","Vor- u. Nachname",null,1,2,3,4,"Ringe",null,"Lfd. Nr.","Scheib Nr.","Klasse","Vor- u. Nachname",null,{"$f":"F11","v":1},{"$f":"G11","v":2},{"$f":"H11","v":3},{"$f":"I11","v":4},"Ringe"]
[1,null,null,null,null,null,null,null,null,{"$f":"IF(I12=\"\",\"\",SUM(F12:I12))","v":""},null,1,null,null,null,null,null,null,null,null,{"$f":"IF(T12=\"\",\"\",SUM(Q12:T12))","v":""}]
[2,null,null,null,null,null,null,null,null,"",null,2,null,null,null,null,null,null,null,null,""]
[3,null,null,null,null,null,null,null,null,"",null,3,null,null,null,null,null,null,null,null,""]
[4,null,null,null,null,null,null,null,null,"",null,4,null,null,null,null,null,null,null,null,""]
[5,null,null,null,null,null,null,null,null,"",null,5,null,null,null,null,null,null,null,null,""]
[6,null,null,null,null,null,null,null,null,"",null,6,null,null,null,null,null,null,null,null,""]
[]
["Auswertung"]
["Ringsumme Heimmannschaft",null,null,null,null,null,null,null,{"$f":"IF(SUM(J12:J17)<>0,SUM(J12:J17),\"\")","v":""},null,":",{"$f":"IF(SUM(U12:U17)<>0,SUM(U12:U17),\"\")","v":""},null,"Ringsumme Gastmannschaft"]
[]
["Der Wettkampf wurde unter Berücksichtigung der gültigen Ausschreibung des DSB-Pokals und der Sportordnung des Dt. Schützenbundes durchgeführt.\nDieses Formular ist auszudrucken und von den Mannschaftsführern zu unterschreiben. Das Original ist zusammen mit den beschossenen Scheiben bzw. den Kontrollausdrucken bis zum Abschluss der Pokalrunde aufzubewahren. Die Übermittlung an den DSB erfolgt durch den Heimverein innerhalb der ausgeschriebenen Frist per Email an bachem@dsb.de (Scan des unterschriebenen Originals), die Gastmannschaft ist dabei in CC zu setzen. Wird der Wettkampf als Fernwettkampf ausgetragen, senden beide Mannschaften einen unterschriebenen Bogen per Email an den DSB und den Gegner)."]
[]
["Bestätigung der Mannschaftsführer"]
[null,null,null,null,null,null,null,null,"Name"]
[null,null,null,null,null,null,null,null,"Anschrift"]
[null,null,null,null,null,null,null,null,"Telefon, Email"]
[null,null,null,null,null,null,null,null,"Unterschrift"]
[]
[]
[null,null,null,null,null,{"$f":"IF(J12=\"\",0,RANK(J12,$J$12:$J$15))","v":0},{"$f":"IF(I12=\"\",0,RANK(I12,$I$12:$I$15))","v":0},null,{"$f":"RANK(#REF!,#REF!,1)","v":{"$error":"#REF!"}},null,null,null,null,null,null,null,{"$f":"IF(U12=\"\",0,RANK(U12,$U$12:$U$15))","v":0},{"$f":"IF(T12=\"\",0,RANK(T12,$T$12:$T$15))","v":0},null,{"$f":"RANK(#REF!,#REF!,1)","v":{"$error":"#REF!"}}]
[null,null,null,null,null,{"$f":"IF(J13=\"\",0,RANK(J13,$J$12:$J$15))","v":0},{"$f":"IF(I13=\"\",0,RANK(I13,$I$12:$I$15))","v":0},null,{"$f":"RANK(#REF!,#REF!,1)","v":{"$error":"#REF!"}},null,null,null,null,null,null,null,{"$f":"IF(U13=\"\",0,RANK(U13,$U$12:$U$15))","v":0},{"$f":"IF(T13=\"\",0,RANK(T13,$T$12:$T$15))","v":0},null,{"$f":"RANK(#REF!,#REF!,1)","v":{"$error":"#REF!"}}]
[null,null,null,null,null,{"$f":"IF(J14=\"\",0,RANK(J14,$J$12:$J$15))","v":0},{"$f":"IF(I14=\"\",0,RANK(I14,$I$12:$I$15))","v":0},null,{"$f":"RANK(#REF!,#REF!,1)","v":{"$error":"#REF!"}},null,null,null,null,null,null,null,{"$f":"IF(U14=\"\",0,RANK(U14,$U$12:$U$15))","v":0},{"$f":"IF(T14=\"\",0,RANK(T14,$T$12:$T$15))","v":0},null,{"$f":"RANK(#REF!,#REF!,1)","v":{"$error":"#REF!"}}]
[null,null,null,null,null,{"$f":"IF(#REF!=\"\",0,RANK(#REF!,$J$12:$J$15))","v":{"$error":"#REF!"}},{"$f":"IF(#REF!=\"\",0,RANK(#REF!,$I$12:$I$15))","v":{"$error":"#REF!"}},null,{"$f":"RANK(#REF!,#REF!,1)","v":{"$error":"#REF!"}},null,null,null,null,null,null,null,{"$f":"IF(#REF!=\"\",0,RANK(#REF!,$U$12:$U$15))","v":{"$error":"#REF!"}},{"$f":"IF(#REF!=\"\",0,RANK(#REF!,$T$12:$T$15))","v":{"$error":"#REF!"}},null,{"$f":"RANK(#REF!,#REF!,1)","v":{"$error":"#REF!"}}]
[null,null,null,null,null,{"$f":"IF(J15=\"\",0,RANK(J15,$J$12:$J$15))","v":0},{"$f":"IF(I15=\"\",0,RANK(I15,$I$12:$I$15))","v":0},null,{"$f":"RANK(#REF!,#REF!,1)","v":{"$error":"#REF!"}},null,null,null,null,null,null,null,{"$f":"IF(U15=\"\",0,RANK(U15,$U$12:$U$15))","v":0},{"$f":"IF(T15=\"\",0,RANK(T15,$T$12:$T$15))","v":0},null,{"$f":"RANK(#REF!,#REF!,1)","v":{"$error":"#REF!"}}]
[null,null,null,null,null,{"$f":"IF(J17=\"\",0,RANK(J17,$J$12:$J$17))","v":0},{"$f":"IF(I17=\"\",0,RANK(I17,$I$12:$I$17))","v":0},null,{"$f":"RANK(#REF!,#REF!,1)","v":{"$error":"#REF!"}},null,null,null,null,null,null,null,{"$f":"IF(U17=\"\",0,RANK(U17,$U$12:$U$17))","v":0},{"$f":"IF(T17=\"\",0,RANK(T17,$T$12:$T$17))","v":0},null,{"$f":"RANK(#REF!,#REF!,1)","v":{"$error":"#REF!"}}]